bitfinex/quotes_SOLUSD_20250817
["timestamp","ask_amount","ask_price","bid_price","bid_amount"]
[1755408905526,7.31842289,192.98,192.97,2.28753412]
[1755408905731,7.31842289,192.98,192.97,0.12]
[1755408905966,3.4594934,192.98,192.97,2.28753412]
[1755408906128,0.06,193.03,193.01,26.0]
[1755408906328,0.06,193.03,193.02,2.16753412]
[1755408906756,0.06,193.03,193.02,3.38342866]
[1755408907057,0.06,193.03,193.02,3.41342866]
[1755408907355,0.06,193.03,193.02,3.38342866]
[1755408907528,0.06,193.03,193.02,5.21081027]
[1755408907727,1e-08,193.03,193.02,23.7004545]
[1755408909368,1e-08,193.03,193.02,8.56423893]
[1755408910234,1e-08,193.03,193.02,5.18081027]
[1755408910456,1e-08,193.03,193.02,8.56423893]
[1755408912737,1e-08,193.03,193.02,89.26423893]
[1755408913066,1e-08,193.03,193.02,89.81231995]
[1755408913463,1e-08,193.03,193.02,104.91853552]
[1755408913642,1e-08,193.03,193.02,104.4004545]
[1755408915750,1e-08,193.03,193.02,119.9704545]
[1755408915953,1e-08,193.03,193.02,104.4004545]
[1755408919277,1e-08,193.03,193.02,89.29423893]
[1755408919575,1e-08,193.03,193.02,89.81231995]
[1755408921454,1e-08,193.03,193.02,89.78231995]
[1755408922668,1e-08,193.03,193.02,89.26423893]
[1755408925999,0.67000001,193.03,193.01,80.7]
[1755408926271,4.05342867,193.03,193.02,36.26]
[1755408926445,0.67000001,193.03,193.02,36.26]
[1755408928073,0.67000001,193.03,193.02,41.44081027]
[1755408928380,0.67000001,193.03,193.02,36.26]
[1755408930682,0.67000001,193.03,193.02,41.44081027]
[1755408931369,0.67000001,193.03,193.02,44.82502414]
[1755408931370,1e-08,193.03,193.02,44.82502414]
[1755408931570,1e-08,193.03,193.02,44.85502414]
[1755408932360,1e-08,193.03,193.02,44.82502414]
[1755408933177,1e-08,193.03,193.02,59.96123971]
[1755408938386,1e-08,193.03,193.02,59.93123971]
[1755408939271,1e-08,193.03,193.02,56.54702584]
[1755408939470,1e-08,193.03,193.02,59.93123971]
[1755408940780,0.67000001,193.03,193.02,5.18081027]
[1755408940981,0.67000001,193.03,193.02,41.42081027]
[1755408941189,0.67000001,193.03,193.02,5.18081027]
[1755408941371,0.67000001,193.03,193.02,41.42081027]
[1755408941877,4.05421388,193.03,193.02,36.24]
[1755408942685,4.05421388,193.03,193.02,41.42081027]
[1755408942870,1e-08,193.03,193.02,41.42081027]
[1755408943071,0.67000001,193.03,193.02,41.42081027]
[1755408943264,0.67000001,193.03,193.02,41.45081027]
[1755408945883,1e-08,193.03,193.02,44.83502414]
[1755408946075,0.71000001,193.03,193.02,44.83502414]
[1755408946274,0.71000001,193.03,193.02,41.45081027]
[1755408947465,4.17372325,193.03,193.02,41.45081027]
[1755408948293,7.55793712,193.03,193.0,5.18108473]
[1755408948482,10.69878319,193.02,193.01,36.24]
[1755408948680,11.40878319,193.02,193.01,36.24]
[1755408950084,11.41076002,193.02,193.01,36.24]
[1755408953079,7.55793711,193.02,193.01,36.24]
[1755408953280,11.41534625,193.02,193.01,36.24]
[1755408954270,8.03113238,193.02,193.01,36.24]
[1755408954473,11.41534625,193.02,193.01,36.24]
[1755408954701,8.03113238,193.02,193.01,36.24]
[1755408954877,11.41534625,193.02,193.01,36.24]
[1755408956585,7.32113238,193.02,193.01,41.4210787]
[1755408956894,7.32113238,193.02,193.01,44.80529257]
[1755408958111,7.32113238,193.02,193.01,41.4210787]
[1755408960594,7.32113238,193.02,193.01,44.83529257]
[1755408960788,3.46372324,193.02,193.01,44.89529257]
[1755408960990,1e-08,193.03,193.01,44.89529257]
[1755408961191,1e-08,193.03,193.02,3.38421387]
[1755408961391,3.46793643,193.03,193.02,3.38421387]
[1755408962082,3.46793643,193.03,193.01,44.83529257]
[1755408962393,3.46793642,193.02,193.01,44.83529257]
[1755408966016,3.46793642,193.02,193.01,125.53529257]
[1755408968325,1e-08,193.03,193.01,125.53529257]
[1755408968620,1e-08,193.03,193.02,8.56502414]
[1755408968817,3.47132055,193.03,193.02,8.56502414]
[1755408970521,3.47132055,193.03,193.02,44.80502414]
[1755408971390,1e-08,193.03,193.02,44.80502414]
[1755408977323,1e-08,193.03,193.02,44.83502414]
[1755408977928,3.47543338,193.03,193.02,44.83502414]
[1755408978433,1e-08,193.03,193.02,44.83502414]
[1755408979931,1e-08,193.03,193.02,41.45081027]
[1755408980229,0.72000001,193.03,193.02,44.83502414]
[1755408980816,0.72000001,193.03,193.02,125.53502414]
[1755408983031,0.72000001,193.03,193.02,122.15081027]
[1755408983331,0.72000001,193.03,193.02,125.53502414]
[1755408986435,1e-08,193.03,193.02,125.53502414]
[1755408986635,1e-08,193.03,193.02,124.31582658]
[1755408987430,0.72000001,193.03,193.02,124.31582658]
[1755408990146,0.72000001,193.03,193.02,122.15081027]
[1755408990444,0.72000001,193.03,193.02,124.31582658]
[1755409007054,1e-08,193.03,193.02,124.31582658]
[1755409008575,0.06,193.06,193.05,26.0]
[1755409008731,0.06,193.06,193.05,145.08501631]
[1755409009269,1e-08,193.07,193.05,145.08501631]
[1755409009438,1e-08,193.08,193.06,2.16501631]
[1755409009638,1e-08,193.08,193.07,38.38501631]
[1755409011246,1e-08,193.09,193.07,43.56448489]
[1755409011445,1e-08,193.09,193.08,2.16501631]
[1755409012760,1e-08,193.09,193.08,4.23986631]
[1755409013257,1e-08,193.09,193.08,9.41906664]
[1755409013446,0.66000001,193.09,193.08,122.09920033]
[1755409013640,0.66000001,193.09,193.08,124.26421664]
[1755409017163,1e-08,193.09,193.08,124.26421664]
[1755409018269,1e-08,193.09,193.08,124.17405033]
[1755409018441,1e-08,193.09,193.08,126.33906664]
[1755409019270,1e-08,193.09,193.08,124.26421664]
[1755409019560,0.66000001,193.09,193.08,124.26421664]
[1755409020760,1e-08,193.09,193.08,124.26421664]
[1755409021260,0.66000001,193.09,193.08,124.26421664]
[1755409024285,2.82501632,193.09,193.08,80.7]
[1755409024569,10.15387108,193.09,193.06,2.074957]
[1755409024746,2.16501631,193.07,193.06,2.074957]
[1755409024950,5.63674706,193.07,193.06,36.22]
[1755409025258,4.13173075,193.07,193.06,36.22]
[1755409025578,4.13173075,193.07,193.06,41.39973686]
[1755409026159,0.66,193.07,193.06,41.39973686]
[1755409026859,4.13213265,193.07,193.06,41.39973686]
[1755409027174,7.51519765,193.07,193.06,41.39973686]
[1755409027379,4.13213265,193.07,193.06,41.42973686]
[1755409032174,3.47213265,193.07,193.06,41.42973686]
[1755409032366,1e-08,193.09,193.06,41.42973686]
[1755409032571,0.66,193.08,193.06,41.42973686]
[1755409032753,0.66,193.07,193.06,41.42973686]
[1755409033158,0.66000001,193.09,193.06,41.42973686]
[1755409033363,0.66,193.08,193.06,41.42973686]
[1755409034378,0.66,193.07,193.06,41.42973686]
[1755409036274,4.13060989,193.07,193.06,41.42973686]
[1755409036981,1e-08,193.09,193.06,41.42973686]
[1755409037180,4.1905936,193.08,193.06,41.42973686]
[1755409037380,0.72,193.08,193.06,41.42973686]
[1755409040195,3.47081016,193.07,193.06,41.42973686]
[1755409040598,4.19081016,193.07,193.06,41.42973686]
[1755409045719,4.19081016,193.07,193.06,36.25]
[1755409046211,4.19081016,193.07,193.06,41.42973686]
[1755409048784,3.47081016,193.07,193.06,41.42973686]
[1755409049881,4.19081016,193.07,193.06,41.42973686]
[1755409052271,3.47081016,193.07,193.06,43.59486031]
[1755409052678,3.47081016,193.07,193.06,41.42973686]
[1755409053183,3.47081016,193.07,193.06,43.59486031]
[1755409053996,1e-08,193.09,193.06,43.59486031]
[1755409054223,1e-08,193.09,193.08,33.34432378]
[1755409054389,1e-08,193.1,193.08,150.24432378]
[1755409054597,1e-08,193.1,193.09,2.22512345]
[1755409056016,1e-08,193.1,193.09,98.03133902]
[1755409056312,4.44284986,193.19,193.12,26.0]
[1755409056313,0.72,193.18,193.12,26.0]
[1755409056607,1e-08,193.15,193.14,17.27133902]
[1755409056905,1e-08,193.15,193.14,34.04340778]
[1755409057210,1e-08,193.19,193.18,3.37719221]
[1755409057395,1e-08,193.19,193.18,54.68340778]
[1755409057595,1e-08,193.19,193.18,70.30340778]
[1755409058398,1e-08,193.19,193.18,75.47992708]
[1755409058788,1e-08,193.19,193.18,78.85711929]
[1755409059014,1e-08,193.19,193.18,8.55371151]
[1755409059213,1e-08,193.19,193.18,70.75371151]
[1755409059523,0.72000001,193.19,193.18,70.75371151]
[1755409059698,0.72000001,193.19,193.18,67.3765193]
[1755409060203,1e-08,193.19,193.18,70.75371151]
[1755409062610,0.72000001,193.19,193.18,67.3765193]
[1755409063395,4.09719222,193.19,193.13,3.37719221]
[1755409063591,3.37719221,193.17,193.12,5.17812758]
[1755409063790,4.09719221,193.16,193.12,5.17812758]
[1755409064009,1e-08,193.19,193.08,52.42621557]
[1755409064010,0.72,193.15,193.08,40.69719221]
[1755409064236,0.72,193.15,193.13,8.55505168]
[1755409064546,0.72,193.15,193.14,39.61719221]
[1755409064704,3.37719222,193.19,193.13,5.17785947]
[1755409065015,0.69,193.14,193.13,8.55505168]
[1755409065318,0.69,193.17,193.13,44.79505168]
[1755409065495,0.69,193.16,193.15,3.37719221]
[1755409065696,0.69,193.16,193.15,39.63719221]
[1755409066103,0.69,193.16,193.15,36.26]
[1755409067107,0.69,193.16,193.15,41.43732332]
[1755409067902,0.69,193.16,193.15,36.26]
[1755409068214,4.06719221,193.16,193.15,36.26]
[1755409068609,0.69,193.16,193.15,36.26]
[1755409069409,0.69,193.16,193.14,36.26]
[1755409070321,0.69,193.15,193.14,36.26]
[1755409070499,0.69,193.15,193.14,39.63719221]
[1755409070698,0.69,193.15,193.14,36.26]
[1755409072524,0.69,193.15,193.14,41.43759138]
[1755409073226,0.69,193.17,193.14,44.81478359]
[1755409073401,0.69,193.16,193.14,44.81478359]
[1755409073726,0.69,193.15,193.14,44.81478359]
[1755409074296,0.69,193.15,193.12,26.0]
[1755409074499,3.37719221,193.13,193.06,84.10719221]
[1755409074715,0.69,193.12,193.08,3.37719221]
[1755409074914,0.69,193.11,193.09,36.32]
[1755409075097,3.37719221,193.15,193.09,39.69719221]
[1755409075308,0.69,193.13,193.09,39.69719221]
[1755409075513,3.37719221,193.15,193.09,39.69719221]
[1755409075514,0.69,193.12,193.09,39.69719221]
[1755409075808,0.69,193.11,193.09,36.32]
[1755409076010,3.37719221,193.13,193.1,0.03]
[1755409076217,3.37719221,193.13,193.11,36.32]
[1755409076731,4.06719221,193.12,193.1,0.03]
[1755409077030,3.37719221,193.11,193.1,0.03]
[1755409077416,4.06719221,193.11,193.1,0.03]
[1755409086429,7.53004449,193.13,193.1,0.03]
[1755409086618,4.06719221,193.13,193.1,0.03]
[1755409086814,0.69,193.12,193.1,0.03]
[1755409087335,0.69,193.11,193.1,0.03]
[1755409088236,0.69,193.13,193.1,0.03]
[1755409088409,0.69,193.15,193.12,3.37719221]
[1755409088829,0.69,193.15,193.11,36.32]
[1755409089035,0.69,193.15,193.12,3.37719221]
[1755409090336,0.69,193.17,193.14,5.17759138]
[1755409090710,0.69,193.16,193.14,5.17759138]
[1755409091923,0.69,193.18,193.14,5.17759138]
[1755409092239,0.69,193.17,193.14,5.17759138]
[1755409092534,0.69,193.16,193.14,8.55478359]
[1755409092911,0.69,193.16,193.13,3.37719221]
[1755409093609,0.69,193.15,193.13,3.37719221]
[1755409093809,0.69,193.15,193.14,36.3]
[1755409094412,3.37719221,193.18,193.14,36.3]
[1755409094619,0.66,193.17,193.14,36.3]
[1755409094821,0.66,193.16,193.14,36.3]
[1755409095218,0.66,193.16,193.14,41.47732907]
[1755409097042,6.84004449,193.18,193.14,41.47732907]
[1755409097226,0.66,193.15,193.14,41.47732907]
[1755409098831,0.66,193.17,193.14,41.47732907]
[1755409099147,0.66,193.16,193.14,41.47732907]
[1755409105955,3.37719221,193.18,193.14,44.85452128]
[1755409105956,3.46555657,193.17,193.14,44.85452128]
[1755409106132,0.66,193.18,193.14,44.85452128]
[1755409106331,3.46565916,193.17,193.14,44.85452128]
[1755409106524,0.66,193.18,193.15,3.37719221]
[1755409106854,0.66000001,193.19,193.16,39.59719221]
[1755409107044,3.46714653,193.18,193.16,39.59719221]
[1755409107352,3.46831789,193.17,193.16,39.49719221]
[1755409107526,0.66,193.18,193.16,39.49719221]
[1755409107728,0.66,193.18,193.17,5.17678728]
[1755409107929,4.12845604,193.18,193.17,5.17678728]
[1755409109246,1e-08,193.19,193.17,5.17678728]
[1755409109247,1e-08,193.19,193.17,8.55397949]
[1755409109450,1e-08,193.19,193.18,41.3965193]
[1755409109650,4.12864316,193.19,193.18,41.3965193]
[1755409110640,0.66000001,193.19,193.18,41.3965193]
[1755409112934,1e-08,193.19,193.18,44.77371151]
[1755409113141,1e-08,193.19,193.18,44.83371151]
[1755409113539,1e-08,193.19,193.18,125.53371151]
[1755409115971,1e-08,193.19,193.18,151.53371151]
[1755409117074,1e-08,193.19,193.18,140.63992708]
[1755409119153,1e-08,193.19,193.18,137.26273487]
[1755409119353,1e-08,193.19,193.18,140.63992708]
[1755409121277,0.66000001,193.19,193.18,85.8765193]
[1755409121453,1e-08,193.19,193.18,125.45371151]
[1755409121651,1e-08,193.19,193.18,137.18273487]
[1755409121859,1e-08,193.19,193.18,140.61992708]
[1755409127977,1e-08,193.21,193.2,15.10621557]
[1755409128177,1e-08,193.23,193.22,26.0]
[1755409128379,1e-08,193.23,193.22,65.55719221]
[1755409129290,1e-08,193.23,193.22,142.88]
[1755409129583,1e-08,193.23,193.22,151.43263988]
[1755409132467,0.69000001,193.23,193.22,148.05544767]
[1755409132679,0.69000001,193.23,193.22,151.43263988]
[1755409133275,0.69000001,193.23,193.22,115.25263988]
[1755409133466,0.69000001,193.23,193.22,151.43263988]
[1755409133666,0.69000001,193.23,193.22,111.87544767]
[1755409133860,0.69000001,193.23,193.22,148.13544767]
[1755409134260,0.69000001,193.23,193.22,151.51263988]
[1755409134655,0.69000001,193.23,193.22,70.81263988]
[1755409135077,0.69000001,193.23,193.22,67.43544767]
[1755409135355,0.69000001,193.23,193.22,70.81263988]
[1755409137192,1e-08,193.23,193.22,70.81263988]
[1755409138970,0.69000001,193.23,193.22,70.81263988]
[1755409139566,1e-08,193.23,193.22,70.81263988]
[1755409140695,1e-08,193.23,193.22,151.51263988]
[1755409141901,0.69000001,193.23,193.22,148.13544767]
[1755409142110,0.69000001,193.23,193.22,151.51263988]
[1755409142790,1e-08,193.23,193.22,166.61885545]
[1755409145390,1e-08,193.23,193.22,130.35885545]
[1755409145594,0.69000001,193.23,193.22,151.47263988]
[1755409147507,1e-08,193.23,193.22,151.47263988]
[1755409148613,1e-08,193.23,193.22,166.57885545]
[1755409152110,1e-08,193.25,193.23,15.10621557]
[1755409152410,1e-08,193.27,193.26,26.0]
[1755409152610,1e-08,193.27,193.26,65.57719221]
[1755409154206,1e-08,193.27,193.26,59.85778426]
[1755409155445,1e-08,193.27,193.26,140.55778426]
[1755409158221,1e-08,193.28,193.26,140.55778426]
[1755409158434,1e-08,193.28,193.27,3.37719221]
[1755409158724,1e-08,193.28,193.27,110.07719221]
[1755409159931,1e-08,193.28,193.27,115.25130096]
[1755409160401,1e-08,193.28,193.27,130.35751653]
[1755409161296,0.06,193.3,193.28,41.10621557]
[1755409161502,0.06,193.3,193.29,39.55719221]
[1755409162209,0.06,193.3,193.29,44.73076559]
[1755409163330,0.75,193.3,193.29,44.73076559]
[1755409164452,0.75,193.3,193.29,125.43076559]
[1755409165414,0.06,193.3,193.29,125.43076559]
[1755409166408,0.06,193.3,193.29,89.25076559]
[1755409166714,0.06,193.3,193.29,125.43076559]
[1755409171515,0.75,193.3,193.29,125.43076559]
[1755409172545,0.06,193.31,193.29,125.43076559]
[1755409172714,0.06,193.31,193.3,31.17330574]
[1755409172915,0.75,193.31,193.3,31.17330574]
[1755409173111,0.75,193.31,193.3,34.55049795]
[1755409175324,0.75,193.31,193.3,31.17330574]
[1755409175636,0.75,193.31,193.3,34.55049795]
[1755409176230,0.75,193.31,193.3,115.25049795]
[1755409176739,0.75,193.31,193.3,151.43049795]
[1755409176938,0.75,193.31,193.3,115.25049795]
[1755409177129,0.75,193.31,193.3,151.43049795]
[1755409178143,4.12719221,193.31,193.27,0.03]
[1755409178342,4.12719221,193.31,193.28,36.16]
[1755409178531,3.37719221,193.3,193.28,36.16]
[1755409178731,0.69,193.29,193.28,36.16]
[1755409179126,0.69,193.29,193.28,41.33377471]
[1755409179334,0.06,193.31,193.28,44.71096692]
[1755409179550,0.06,193.31,193.3,3.37719221]
[1755409179741,0.06,193.31,193.3,39.53719221]
[1755409179943,0.06,193.31,193.3,44.71049795]
[1755409180543,0.06,193.31,193.3,70.71049795]
[1755409180722,0.06,193.33,193.3,70.71049795]
[1755409180723,0.06,193.33,193.32,26.0]
[1755409180923,0.06,193.33,193.32,65.53719221]
[1755409182145,0.06,193.33,193.32,70.70996274]
[1755409182956,0.69,193.35,193.32,70.70996274]
[1755409183245,0.69,193.35,193.34,3.37719221]
[1755409183457,0.69,193.35,193.34,39.53719221]
[1755409183933,0.69,193.35,193.34,41.33223544]
[1755409184134,0.69,193.35,193.34,44.70942765]
[1755409184558,0.66,193.37,193.34,125.40942765]
[1755409184743,0.66,193.36,193.35,3.37719221]
[1755409185529,0.66,193.36,193.34,138.34001625]
[1755409185728,0.66,193.35,193.34,138.34001625]
[1755409186759,3.37719221,193.39,193.37,26.0]
[1755409186760,0.66,193.39,193.37,26.0]
[1755409186932,3.46217993,193.41,193.38,36.16]
[1755409187128,3.46217993,193.4,193.38,36.16]
[1755409187453,3.37719221,193.41,193.38,36.16]
[1755409187660,0.66,193.39,193.38,36.16]
[1755409188057,0.66,193.39,193.38,41.33116558]
[1755409190662,0.66,193.39,193.38,36.16]
[1755409192643,0.66,193.39,193.38,41.33116558]
[1755409197250,0.06,193.41,193.38,41.33116558]
[1755409197454,0.66,193.4,193.38,41.33116558]
[1755409197645,0.66,193.39,193.38,41.33116558]
[1755409201865,0.66,193.39,193.38,36.16]
[1755409202172,4.12835955,193.39,193.38,36.16]
[1755409202563,0.72,193.41,193.38,39.53719221]
[1755409202746,0.06,193.41,193.38,120.89719221]
[1755409202949,0.06,193.41,193.39,3.37719221]
[1755409203148,0.06,193.41,193.4,36.16]
[1755409203459,3.52995033,193.41,193.4,41.33063081]
[1755409204073,3.52995033,193.41,193.4,44.70782302]
[1755409204385,0.06,193.41,193.4,45.36782302]
[1755409204560,0.06,193.41,193.4,125.40782302]
[1755409204887,0.06,193.41,193.4,122.03063081]
[1755409205052,0.72,193.41,193.4,122.03063081]
[1755409206473,0.06,193.41,193.4,122.03063081]
[1755409206675,0.06,193.41,193.4,125.40782302]
[1755409207167,0.06,193.41,193.4,126.06782302]
[1755409208656,0.06,193.41,193.4,45.36782302]
[1755409208881,0.06,193.41,193.4,44.70782302]
[1755409214585,0.06,193.41,193.4,41.33063081]
[1755409214763,0.06,193.41,193.4,44.70782302]
[1755409214971,0.71,193.41,193.4,44.70782302]
[1755409215272,0.71,193.41,193.4,5.17063081]
[1755409215474,4.08719221,193.41,193.39,106.7]
[1755409215679,4.08719221,193.41,193.4,36.14]
[1755409215985,6.90415721,193.41,193.4,36.14]
[1755409216281,6.90415721,193.41,193.37,5.17118078]
[1755409216486,3.37719221,193.39,193.38,36.14]
[1755409216670,2.80816694,193.39,193.38,36.14]
[1755409216868,0.65,193.39,193.38,36.14]
[1755409217389,2.80816694,193.39,193.38,36.14]
[1755409217591,5.6271899,193.4,193.38,36.14]
[1755409217895,2.15816694,193.4,193.38,36.14]
[1755409218689,3.37222434,193.39,193.38,36.14]
[1755409218865,6.84107052,193.39,193.38,36.14]
[1755409219063,10.69531542,193.39,193.38,36.14]
[1755409219376,6.84107052,193.39,193.38,36.14]
[1755409219571,11.34561198,193.39,193.38,36.14]
[1755409220867,0.06,193.41,193.4,38.65438802]
[1755409221065,3.43222434,193.41,193.4,38.65438802]
[1755409222891,4.08222434,193.41,193.4,38.65438802]
[1755409225765,9.25258781,193.41,193.4,38.65438802]
[1755409226785,4.08222434,193.41,193.4,38.65438802]
[1755409229294,3.58222434,193.41,193.4,38.65438802]
[1755409230300,3.64222434,193.41,193.4,38.65438802]
[1755409232580,13.15543767,193.41,193.4,38.65438802]
[1755409232794,20.49067506,193.41,193.4,38.65438802]
[1755409232979,25.44273045,193.41,193.4,29.91985781]
[1755409233313,29.30311176,193.41,193.4,29.91985781]
[1755409238707,28.52982541,193.41,193.4,29.91985781]
[1755409240283,27.87982541,193.41,193.4,29.91985781]
[1755409240603,14.72438741,193.41,193.4,29.91985781]
[1755409241713,9.55094013,193.41,193.4,30.62985781]
[1755409242176,5.69364263,193.41,193.4,30.62985781]
[1755409242376,9.55086559,193.41,193.4,29.91985781]
[1755409247604,9.55086559,193.41,193.4,29.94985781]
[1755409251422,9.55086559,193.41,193.4,30.60985781]
[1755409252923,9.55086559,193.41,193.4,29.94985781]
[1755409253415,9.55086559,193.41,193.4,30.60985781]
[1755409254027,5.69364263,193.41,193.4,30.60985781]
[1755409254219,9.55133204,193.41,193.4,30.60985781]
[1755409259223,13.89454246,193.41,193.4,30.60985781]
[1755409260307,13.89454246,193.41,193.4,29.94985781]
[1755409261703,9.55133204,193.41,193.4,29.94985781]
[1755409261905,9.55133204,193.41,193.4,21.21578497]
[1755409262105,34.84996669,193.41,193.4,21.21578497]
[1755409262521,30.49791108,193.41,193.4,21.21578497]
[1755409262921,9.55133204,193.41,193.4,21.87578497]
[1755409263731,7.39239405,193.41,193.4,21.87578497]
[1755409265228,7.40372832,193.41,193.4,21.87578497]
[1755409265644,9.56212253,193.41,193.4,21.87578497]
[1755409268035,7.40318454,193.41,193.4,29.20535377]
[1755409269335,3.53470464,193.41,193.4,29.20535377]
[1755409270422,0.06,193.41,193.4,29.20535377]
[1755409272129,0.06,193.41,193.4,27.04641578]
[1755409275927,0.06,193.41,193.4,29.20535377]
[1755409282151,0.06,193.41,193.4,65.32535377]
[1755409282937,0.06,193.41,193.4,29.20535377]
[1755409283247,0.06,193.41,193.4,63.16641578]
[1755409284360,0.74,193.41,193.4,26.38641578]
[1755409284591,0.74,193.41,193.4,62.50641578]
[1755409284763,0.06,193.41,193.4,62.50641578]
[1755409286352,6.37122999,193.41,193.4,62.50641578]
[1755409286747,4.212292,193.41,193.4,62.50641578]
[1755409286955,3.532292,193.41,193.4,62.50641578]
[1755409287464,3.532292,193.41,193.4,63.22641578]
[1755409287673,0.06,193.41,193.4,63.22641578]
[1755409292965,0.06,193.41,193.4,65.38535377]
[1755409293775,0.06,193.41,193.4,29.26535377]
[1755409294071,0.06,193.41,193.4,65.38535377]
[1755409297463,0.06,193.41,193.4,146.08535377]
[1755409299783,0.06,193.43,193.42,2.15893799]
[1755409299974,0.06,193.45,193.42,38.25893799]
[1755409300181,0.06,193.45,193.43,38.97893799]
[1755409300959,0.06,193.45,193.43,36.82]
[1755409301466,0.06,193.45,193.43,36.1]
[1755409301666,0.06,193.45,193.44,5.16956162]
[1755409301973,3.5359103,193.45,193.44,5.16956162]
[1755409302547,3.5359103,193.45,193.44,5.88956162]
[1755409303166,3.5359103,193.45,193.44,5.16956162]
[1755409303383,6.37484829,193.45,193.44,5.16956162]
[1755409303882,10.2375933,193.45,193.44,5.16956162]
[1755409304086,8.07865531,193.45,193.43,41.2698172]
[1755409304290,3.4759103,193.44,193.43,41.2698172]
[1755409304965,7.33910964,193.44,193.43,41.2698172]
[1755409305781,10.19804763,193.44,193.43,36.1]
[1755409305984,7.33910964,193.44,193.43,41.26982887]
[1755409309183,7.33910964,193.44,193.43,36.1]
[1755409309674,9.49804763,193.44,193.43,36.1]
[1755409310073,10.19804763,193.44,193.43,36.1]
[1755409310276,9.49804763,193.44,193.43,36.1]
[1755409310592,7.33910964,193.44,193.43,41.26982887]
[1755409312507,7.33910964,193.44,193.43,36.1]
[1755409313809,3.4759103,193.44,193.43,36.13]
[1755409313995,9.50388682,193.44,193.43,36.13]
[1755409318792,7.34494883,193.44,193.43,41.29982887]
[1755409319099,7.34494883,193.44,193.43,44.11876686]
[1755409319393,7.34494883,193.44,193.43,41.95982887]
[1755409319608,7.34494883,193.44,193.43,36.79]
[1755409319800,7.34494883,193.44,193.43,36.13]
[1755409320584,7.34494883,193.44,193.43,41.95982887]
[1755409321908,7.34524407,193.44,193.43,41.95982887]
[1755409322092,7.34524407,193.44,193.43,41.29982887]
[1755409323191,7.34524407,193.44,193.43,41.95982887]
[1755409330905,3.5359103,193.44,193.43,41.95982887]
[1755409331113,7.40882719,193.44,193.43,41.95982887]
[1755409338797,7.40882719,193.44,193.43,41.29982887]
[1755409339001,8.11882719,193.44,193.43,41.29982887]
[1755409339400,7.40882719,193.44,193.43,41.29982887]
[1755409340113,7.40882719,193.44,193.43,36.13]
[1755409340825,7.40882719,193.44,193.43,41.29982887]
[1755409342799,7.41033052,193.44,193.43,41.29982887]
[1755409343300,7.41028691,193.44,193.43,41.29982887]
[1755409345923,7.41028691,193.44,193.43,41.99982887]
[1755409346795,7.41028691,193.44,193.43,41.29982887]
[1755409347097,17.6895109,193.44,193.41,0.03]
[1755409347294,9.5092249,193.43,193.41,0.03]
[1755409347516,7.35028691,193.42,193.41,5.90033258]
[1755409352925,10.2192249,193.42,193.41,5.20033258]
[1755409353536,9.5092249,193.42,193.41,5.20033258]
[1755409354729,5.63484829,193.42,193.41,5.20033258]
[1755409355026,7.34993533,193.42,193.41,5.20033258]
[1755409355523,7.34993533,193.42,193.41,5.90033258]
[1755409362225,7.34911283,193.42,193.41,5.90033258]
[1755409365029,7.34911283,193.42,193.41,5.20033258]
[1755409366131,8.06911283,193.42,193.41,5.20033258]
[1755409366608,7.34911283,193.42,193.41,5.20033258]
[1755409367115,10.22805082,193.42,193.41,0.03]
[1755409367805,7.34911283,193.42,193.41,0.03]
[1755409368111,9.50805082,193.42,193.41,0.03]
[1755409368605,7.34911283,193.42,193.41,0.03]
[1755409368810,9.50805082,193.42,193.41,0.03]
[1755409370035,5.63484829,193.42,193.41,0.03]
[1755409370226,9.50611064,193.42,193.41,0.03]
[1755409370534,9.50579163,193.42,193.41,0.03]
[1755409372718,7.34685364,193.42,193.41,0.03]
[1755409373029,9.50579163,193.42,193.41,0.03]
[1755409374112,10.22579163,193.42,193.41,0.03]
[1755409374515,9.50579163,193.42,193.41,0.03]
[1755409378639,10.22579163,193.42,193.41,0.03]
[1755409378827,9.50579163,193.42,193.41,0.03]
[1755409379135,9.50416382,193.42,193.41,0.03]
[1755409379912,9.50416382,193.42,193.41,0.75]
[1755409380112,9.50416382,193.42,193.41,0.03]